fUSD/lending_fUSD_20240614
["ID","MTS","AMOUNT","RATE_DAILY","PERIOD"]
[329418677,1718328733663,-2614.62,0.00025753,3]
[329418678,1718328733675,-500.0,0.00025753,3]
[329418679,1718328733687,-500.0,0.00025753,3]
[329418680,1718328733699,-1131.25,0.00025753,3]
[329418681,1718328733712,-560.42,0.00025753,3]
[329418682,1718328733744,-500.0,0.00025753,3]
[329418683,1718328733755,-500.0,0.00025753,3]
[329418684,1718328733941,-3845.21,0.00025753,3]
[329418685,1718328733953,-967.09,0.00025753,3]
[329418686,1718328733975,-500.0,0.00025753,3]
[329418687,1718328733986,-3200.03,0.00025753,3]
[329418688,1718328733998,-250.0,0.00025753,3]
[329418689,1718328734010,-500.0,0.00025753,3]
[329418690,1718328734024,-714.39,0.00025753,3]
[329418691,1718328734036,-2771.64,0.00025753,3]
[329418692,1718328734049,-6182.51,0.00025753,3]
[329418693,1718328734064,-500.0,0.00025753,3]
[329418694,1718328734079,-1117.03,0.00025753,3]
[329418695,1718328734092,-500.0,0.00025753,3]
[329418696,1718328734115,-818.88,0.00025753,3]
[329418697,1718328734128,-500.0,0.00025753,3]
[329418698,1718328734146,-13361.61,0.00025753,3]
[329418699,1718328734162,-500.0,0.00025753,3]
[329418700,1718328734176,-1181.16,0.00025753,3]
[329418701,1718328734204,-500.0,0.00025753,3]
[329418702,1718328734215,-500.0,0.00025753,3]
[329418703,1718328734226,-500.0,0.00025753,3]
[329418704,1718328734238,-740.73,0.00025753,3]
[329418705,1718328734249,-584.95,0.00025753,3]
[329418706,1718328734261,-4766.45,0.00025753,3]
[329418707,1718328734275,-932.3,0.00025753,3]
[329418708,1718328734289,-151.0,0.00025753,7]
[329418709,1718328734311,-500.0,0.00025753,3]
[329418710,1718328734323,-500.0,0.00025753,3]
[329418711,1718328734336,-4804.54,0.00025763,2]
[329418712,1718328734354,-7609.7005476,0.00025764,2]
[329418713,1718328734369,-2345.9493394,0.00025764,2]
[329418714,1718328734383,-76512.0710166,0.00025782,2]
[329418715,1718328734411,-3507.2164148,0.00025782,2]
[329418716,1718328734423,-1000.0,0.000258,2]
[329418717,1718328734443,-860.82366226,0.00025815,2]
[329418718,1718328734455,-151.0,0.00025833,4]
[329418719,1718328734468,-1500.0,0.00025998,2]
[329418720,1718328734484,-4160.46542703,0.00026,7]
[329418721,1718328734498,-2000.0,0.00026,2]
[329418722,1718328734510,-1154.0,0.00026,2]
[329418723,1718328734524,-1500.0,0.00026015,2]
[329418724,1718328734536,-1084.83798229,0.00026016,2]
[329418725,1718328734559,-150.0,0.00026022,2]
[329418726,1718328734575,-150.0,0.00026025,2]
[329418727,1718328734586,-1020.6849542,0.00026027,5]
[329418728,1718328734597,-500.0,0.00026027,3]
[329418729,1718328734608,-500.0,0.00026027,3]
[329418730,1718328734621,-500.0,0.00026027,3]
[329418731,1718328734635,-500.0,0.00026027,3]
[329418732,1718328734655,-500.0,0.00026027,3]
[329418733,1718328734667,-500.0,0.00026027,3]
[329418734,1718328734686,-500.0,0.00026027,3]
[329418735,1718328734711,-500.0,0.00026027,3]
[329418736,1718328734747,-500.0,0.00026027,3]
[329418737,1718328734765,-505.24341153,0.00026027,3]
[329418738,1718328734779,-500.0,0.00026027,3]
[329418739,1718328734795,-500.0,0.00026027,3]
[329418740,1718328734813,-506.79917676,0.00026027,3]
[329418741,1718328734828,-500.0,0.00026027,3]
[329418742,1718328734840,-500.0,0.00026027,3]
[329418743,1718328734854,-245.8,0.00026027,3]
[329418744,1718328734878,-500.0,0.00026027,3]
[329418745,1718328734890,-500.0,0.00026027,3]
[329418746,1718328734903,-500.0,0.00026027,3]
[329418747,1718328734915,-535.98,0.00026027,3]
[329418748,1718328734929,-638.68,0.00026027,3]
[329418749,1718328734942,-500.0,0.00026027,3]
[329418750,1718328734953,-209.23,0.00026027,3]
[329418751,1718328734966,-500.0,0.00026027,3]
[329418752,1718328734999,-500.0,0.00026027,3]
[329418753,1718328735010,-630.56,0.00026027,3]
[329418754,1718328735036,-500.0,0.00026027,3]
[329418755,1718328735052,-430.36,0.00026027,3]
[329418756,1718328735064,-539.14,0.00026027,3]
[329418757,1718328735080,-539.62,0.00026027,3]
[329418758,1718328735097,-500.0,0.00026027,3]
[329418759,1718328735111,-804.49,0.00026027,3]
[329418760,1718328735123,-500.0,0.00026027,3]
[329418761,1718328735142,-500.0,0.00026027,3]
[329418762,1718328735165,-572.62,0.00026027,3]
[329418763,1718328735178,-500.0,0.00026027,3]
[329418764,1718328735189,-155.47,0.00026027,3]
[329418765,1718328735200,-152.81,0.00026027,3]
[329418766,1718328735212,-500.0,0.00026027,3]
[329418767,1718328735224,-774.54,0.00026027,3]
[329418768,1718328735236,-986.18,0.00026027,3]
[329418769,1718328735249,-500.0,0.00026027,3]
[329418770,1718328735264,-500.0,0.00026027,3]
[329418771,1718328735276,-1157.92,0.00026027,3]
[329418772,1718328735287,-500.0,0.00026027,3]
[329418773,1718328735299,-500.0,0.00026027,3]
[329418774,1718328735309,-500.0,0.00026027,3]
[329418775,1718328735321,-500.0,0.00026027,3]
[329418776,1718328735332,-500.0,0.00026027,3]
[329418777,1718328735352,-500.0,0.00026027,3]
[329418778,1718328735369,-407.14,0.00026027,3]
[329418779,1718328735386,-500.0,0.00026027,3]
[329418780,1718328735403,-500.0,0.00026027,3]
[329418781,1718328735457,-500.0,0.00026027,3]
[329418782,1718328735482,-220.84904144,0.00026027,3]
[329418783,1718328735529,-195.28,0.00026027,3]
[329418784,1718328735559,-500.0,0.00026027,3]
[329418785,1718328735575,-500.0,0.00026027,3]
[329418786,1718328735592,-500.0,0.00026027,3]
[329418787,1718328735619,-611.61,0.00026027,3]
[329418788,1718328735638,-583.88,0.00026027,3]
[329418789,1718328735650,-500.0,0.00026027,3]
[329418790,1718328735665,-500.0,0.00026027,3]
[329418791,1718328735678,-500.0,0.00026027,3]
[329418792,1718328735690,-548.53,0.00026027,3]
[329418793,1718328735705,-500.0,0.00026027,3]
[329418794,1718328735716,-500.0,0.00026027,3]
[329418795,1718328735728,-692.1,0.00026027,3]
[329418796,1718328735753,-634.92,0.00026027,3]
[329418797,1718328735766,-588.02,0.00026027,3]
[329418798,1718328735779,-500.0,0.00026027,3]
[329418799,1718328735790,-500.0,0.00026027,3]
[329418800,1718328735805,-660.68,0.00026027,3]
[329418801,1718328735815,-960.66,0.00026027,3]
[329418802,1718328735827,-500.0,0.00026027,3]
[329418803,1718328735838,-1302.28,0.00026027,3]
[329418804,1718328735854,-500.0,0.00026027,3]
[329418805,1718328735880,-500.0,0.00026027,3]
[329418806,1718328735897,-500.0,0.00026027,3]
[329418807,1718328735919,-500.0,0.00026027,3]
[329418808,1718328735935,-617.28,0.00026027,3]
[329418809,1718328735951,-565.86,0.00026027,3]
[329418810,1718328735964,-500.0,0.00026027,3]
[329418811,1718328735977,-500.0,0.00026027,3]
[329418812,1718328735990,-500.0,0.00026027,3]
[329418813,1718328736002,-883.98,0.00026027,3]
[329418814,1718328736020,-528.45,0.00026027,3]
[329418815,1718328736045,-500.0,0.00026027,3]
[329418816,1718328736056,-742.73,0.00026027,3]
[329418817,1718328736067,-500.0,0.00026027,3]
[329418818,1718328736078,-322.84,0.00026027,3]
[329418819,1718328736098,-500.0,0.00026027,3]
[329418820,1718328736112,-500.0,0.00026027,3]
[329418821,1718328736125,-500.0,0.00026027,3]
[329418822,1718328736148,-500.0,0.00026027,3]
[329418823,1718328736171,-500.0,0.00026027,3]
[329418824,1718328736187,-500.0,0.00026027,3]
[329418825,1718328736217,-500.0,0.00026027,3]
[329418826,1718328736247,-500.0,0.00026027,3]
[329418827,1718328736262,-598.84,0.00026027,3]
[329418828,1718328736274,-500.0,0.00026027,3]
[329418829,1718328736284,-500.0,0.00026027,3]
[329418830,1718328736296,-500.0,0.00026027,3]
[329418831,1718328736311,-500.0,0.00026027,3]
[329418832,1718328736340,-500.0,0.00026027,3]
[329418833,1718328736354,-719.93,0.00026027,3]
[329418834,1718328736381,-500.0,0.00026027,3]
[329418835,1718328736401,-500.0,0.00026027,3]
[329418836,1718328736413,-500.0,0.00026027,3]
[329418837,1718328736424,-500.0,0.00026027,3]
[329418838,1718328736434,-500.0,0.00026027,3]
[329418839,1718328736446,-500.0,0.00026027,3]
[329418840,1718328736460,-500.0,0.00026027,3]
[329418841,1718328736471,-500.0,0.00026027,3]
[329418842,1718328736486,-520.01269041,0.00026027,3]
[329418843,1718328736499,-500.0,0.00026027,3]
[329418844,1718328736513,-500.0,0.00026027,3]
[329418845,1718328736530,-365.258247,0.00026027,3]
[329418846,1718328736552,-500.0,0.00026027,3]
[329418847,1718328736564,-997.89,0.00026027,3]
[329418848,1718328736583,-500.0,0.00026027,3]
[329418849,1718328736607,-500.0,0.00026027,3]
[329418850,1718328736619,-500.0,0.00026027,3]
[329418851,1718328736634,-500.0,0.00026027,3]
[329418852,1718328736650,-1232.27,0.00026027,3]
[329418853,1718328736668,-500.0,0.00026027,3]
[329418854,1718328736704,-500.0,0.00026027,3]
[329418855,1718328736718,-500.0,0.00026027,3]
[329418856,1718328736736,-500.0,0.00026027,3]
[329418857,1718328736771,-500.0,0.00026027,3]
[329418858,1718328736786,-695.7,0.00026027,3]
[329418859,1718328736809,-500.0,0.00026027,3]
[329418860,1718328736822,-545.28,0.00026027,3]
[329418861,1718328736834,-552.3,0.00026027,3]
[329418862,1718328736862,-550.64,0.00026027,3]
[329418863,1718328736874,-500.0,0.00026027,3]
[329418864,1718328736896,-500.0,0.00026027,3]
[329418865,1718328736912,-500.0,0.00026027,3]
[329418866,1718328736929,-620.4713557,0.00026027,3]
[329418867,1718328736947,-606.11865516,0.00026027,3]
[329418868,1718328736974,-922.06,0.00026027,3]
[329418869,1718328737009,-1020.66,0.00026027,3]
[329418870,1718328737020,-500.0,0.00026027,3]
[329418871,1718328737031,-500.0,0.00026027,3]
[329418872,1718328737042,-1333.56,0.00026027,3]
[329418873,1718328737054,-500.0,0.00026027,3]
[329418874,1718328737066,-578.22,0.00026027,3]
[329418875,1718328737087,-500.0,0.00026027,3]
[329418876,1718328737117,-500.0,0.00026027,3]
[329418877,1718328737129,-904.07,0.00026027,3]
[329418878,1718328737147,-556.85,0.00026027,3]
[329418879,1718328737168,-500.0,0.00026027,3]
[329418880,1718328737180,-903.49,0.00026027,3]
[329418881,1718328737204,-500.0,0.00026027,3]
[329418882,1718328737232,-512.2,0.00026027,3]
[329418883,1718328737254,-500.0,0.00026027,3]
[329418884,1718328737293,-500.0,0.00026027,3]
[329418885,1718328737310,-1002.39,0.00026027,3]
[329418886,1718328737340,-738.2,0.00026027,3]
[329418887,1718328737399,-500.0,0.00026027,3]
[329418888,1718328737411,-500.0,0.00026027,3]
[329418889,1718328737425,-500.0,0.00026027,3]
[329418890,1718328737457,-500.0,0.00026027,3]
[329418891,1718328737492,-500.0,0.00026027,3]
[329418892,1718328737512,-798.44,0.00026027,3]
[329418893,1718328737535,-500.0,0.00026027,3]
[329418894,1718328737559,-262.1,0.00026027,3]
[329418895,1718328737573,-500.0,0.00026027,3]
[329418896,1718328737583,-500.0,0.00026027,3]
[329418897,1718328737594,-500.0,0.00026027,3]
[329418898,1718328737618,-500.0,0.00026027,3]
[329418899,1718328737630,-500.0,0.00026027,3]
[329418900,1718328737649,-500.0,0.00026027,3]
[329418901,1718328737668,-591.59,0.00026027,3]
[329418902,1718328737681,-500.0,0.00026027,3]
[329418903,1718328737700,-500.0,0.00026027,3]
[329418904,1718328737728,-500.0,0.00026027,3]
[329418905,1718328737756,-659.35,0.00026027,3]
[329418906,1718328737770,-500.0,0.00026027,3]
[329418907,1718328737787,-569.74,0.00026027,3]
[329418908,1718328737800,-621.41,0.00026027,3]
[329418909,1718328737811,-549.56,0.00026027,3]
[329418910,1718328737823,-500.0,0.00026027,3]
[329418911,1718328737861,-630.44,0.00026027,3]
[329418912,1718328737872,-500.0,0.00026027,3]
[329418913,1718328737883,-500.0,0.00026027,3]
[329418914,1718328737893,-500.0,0.00026027,3]
[329418915,1718328737906,-500.0,0.00026027,3]
[329418916,1718328737918,-500.0,0.00026027,3]
[329418917,1718328737937,-500.0,0.00026027,3]
[329418918,1718328737949,-2024.27,0.00026027,3]
[329418919,1718328737963,-550.31,0.00026027,3]
[329418920,1718328737975,-661.6,0.00026027,3]
[329418921,1718328737987,-500.0,0.00026027,3]
[329418922,1718328738001,-1051.97,0.00026027,3]
[329418923,1718328738020,-500.0,0.00026027,3]
[329418924,1718328738032,-560.51,0.00026027,3]
[329418925,1718328738047,-2230.14,0.00026027,3]
[329418926,1718328738058,-699.68,0.00026027,3]
[329418927,1718328738081,-648.48,0.00026027,3]
[329418928,1718328738092,-1026.29,0.00026027,3]
[329418929,1718328738117,-500.0,0.00026027,3]
[329418930,1718328738130,-150.0,0.00026027,2]
[329418931,1718328738204,-6651.01,0.00026027,3]
[329418932,1718328738220,-500.0,0.00026027,3]
[329418933,1718328738232,-500.0,0.00026027,3]
[329418934,1718328738247,-500.0,0.00026027,3]
[329418935,1718328738268,-905.81,0.00026027,3]
[329418936,1718328738282,-3969.41,0.00026027,2]
[329418937,1718328738297,-3969.41,0.00026027,2]
[329418938,1718328738326,-3969.41,0.00026027,2]
[329418939,1718328738369,-3969.41,0.00026027,3]
[329418940,1718328738396,-3969.41,0.00026027,3]
[329418941,1718328738413,-500.0,0.00026027,3]
[329418942,1718328738431,-3969.41,0.00026027,3]
[329418943,1718328738454,-3969.41,0.00026027,3]
[329418944,1718328738474,-3969.41,0.00026027,3]
[329418945,1718328738489,-500.0,0.00026027,3]
[329418946,1718328738509,-807.05,0.00026027,3]
[329418947,1718328738531,-500.0,0.00026027,3]
[329418948,1718328738545,-2365.65,0.00026027,3]
[329418949,1718328738569,-500.0,0.00026027,3]
[329418950,1718328738585,-500.0,0.00026027,3]
[329418951,1718328738601,-500.0,0.00026027,3]
[329418952,1718328738620,-593.15,0.00026027,3]
[329418953,1718328738650,-2105.93,0.00026027,3]
[329418954,1718328738689,-843.89,0.00026027,3]
[329418955,1718328738776,-500.0,0.00026027,3]
[329418956,1718328738812,-500.0,0.00026027,3]
[329418957,1718328738835,-500.0,0.00026027,3]
[329418958,1718328738848,-500.0,0.00026027,3]
[329418959,1718328738868,-598.1,0.00026027,3]
[329418960,1718328738882,-699.16,0.00026027,3]
[329418961,1718328738913,-7638.61,0.00026027,3]
[329418962,1718328738939,-3190.81,0.00026027,3]
[329418963,1718328738974,-3649.11,0.00026027,3]
[329418964,1718328739016,-500.0,0.00026027,3]
[329418965,1718328739036,-1217.69,0.00026027,3]
[329418966,1718328739058,-2721.15,0.00026027,3]
[329418967,1718328739085,-500.0,0.00026027,3]
[329418968,1718328739113,-500.0,0.00026027,3]
[329418969,1718328739131,-500.0,0.00026027,3]
[329418970,1718328739169,-1011.07,0.00026027,3]
[329418971,1718328739201,-1346.53,0.00026027,3]
[329418972,1718328739213,-13586.59,0.00026027,3]
[329418973,1718328739226,-2862.08,0.00026027,3]
[329418974,1718328739247,-680.82,0.00026027,3]
[329418975,1718328739261,-2933.81,0.00026027,3]
[329418976,1718328739278,-761.51,0.00026027,3]
[329418977,1718328739288,-500.0,0.00026027,3]
[329418978,1718328739303,-500.0,0.00026027,3]
[329418979,1718328739323,-2631.81,0.00026027,3]
[329418980,1718328739368,-563.33,0.00026027,3]
[329418981,1718328739381,-1745.88,0.00026027,3]
[329418982,1718328739403,-500.0,0.00026027,3]
[329418983,1718328739416,-500.0,0.00026027,3]
[329418984,1718328739440,-500.0,0.00026027,3]
[329418985,1718328739468,-1902.96,0.00026027,3]
[329418986,1718328739485,-773.16,0.00026027,3]
[329418987,1718328739507,-2172.15,0.00026027,3]
[329418988,1718328739519,-1825.98,0.00026027,3]
[329418989,1718328739536,-500.0,0.00026027,3]
[329418990,1718328739550,-500.0,0.00026027,3]
[329418991,1718328739587,-679.92,0.00026027,3]
[329418992,1718328739622,-500.0,0.00026027,3]
[329418993,1718328739662,-986.43,0.00026027,3]
[329418994,1718328739684,-500.0,0.00026027,3]
[329418995,1718328739731,-1829.1,0.00026027,3]
[329418996,1718328739765,-1832.39,0.00026027,3]
[329418997,1718328739792,-1082.5,0.00026027,3]
[329418998,1718328739804,-638.87,0.00026027,3]
[329418999,1718328739816,-2157.56,0.00026027,3]
[329419000,1718328739852,-906.62,0.00026027,3]
[329419001,1718328739867,-500.0,0.00026027,3]
[329419002,1718328739882,-500.0,0.00026027,3]
[329419003,1718328739895,-690.46,0.00026027,3]
[329419004,1718328739919,-500.0,0.00026027,3]
[329419005,1718328739932,-988.9,0.00026027,3]
[329419006,1718328739946,-731.35,0.00026027,3]
[329419007,1718328739958,-27287.16,0.00026027,3]
[329419008,1718328739969,-613.74,0.00026027,3]
[329419009,1718328739980,-500.0,0.00026027,3]
[329419010,1718328739992,-500.0,0.00026027,3]
[329419011,1718328740004,-500.0,0.00026027,3]
[329419012,1718328740029,-910.96,0.00026027,3]
[329419013,1718328740051,-6932.08,0.00026027,3]
[329419014,1718328740063,-500.0,0.00026027,3]
[329419015,1718328740077,-974.92,0.00026027,3]
[329419016,1718328740099,-2616.08,0.00026027,3]
[329419017,1718328740114,-817.09,0.00026027,3]
[329419018,1718328740128,-1080.82,0.00026027,3]
[329419019,1718328740167,-709.94,0.00026027,3]
[329419020,1718328740186,-500.0,0.00026027,3]
[329419021,1718328740199,-500.0,0.00026027,3]
[329419022,1718328740214,-1643.14,0.00026027,3]
[329419023,1718328740233,-6948.28,0.00026027,3]
[329419024,1718328740252,-2321.35,0.00026027,3]
[329419025,1718328740274,-500.0,0.00026027,3]
[329419026,1718328740292,-2845.46,0.00026027,3]
[329419027,1718328740341,-500.0,0.00026027,3]
[329419028,1718328740354,-500.0,0.00026027,3]
[329419029,1718328740391,-1414.89,0.00026027,3]
[329419030,1718328740410,-500.0,0.00026027,3]
[329419031,1718328740442,-13659.59,0.00026027,3]
[329419032,1718328740462,-1408.71,0.00026027,3]
[329419033,1718328740482,-1393.56,0.00026027,3]
[329419034,1718328740495,-2259.66,0.00026027,3]
[329419035,1718328740509,-1111.31,0.00026027,3]
[329419036,1718328740534,-500.0,0.00026027,3]
[329419037,1718328740549,-500.0,0.00026027,3]
[329419038,1718328740561,-500.0,0.00026027,3]
[329419039,1718328740572,-500.0,0.00026027,3]
[329419040,1718328740587,-500.0,0.00026027,3]
[329419041,1718328740607,-10075.29,0.00026027,3]
[329419042,1718328740638,-500.0,0.00026027,3]
[329419043,1718328740657,-500.0,0.00026027,3]
[329419044,1718328740672,-500.0,0.00026027,3]
[329419045,1718328740703,-943.27,0.00026027,3]
[329419046,1718328740715,-3909.82,0.00026027,3]
[329419047,1718328740728,-1168.64,0.00026027,3]
[329419048,1718328740759,-1483.04,0.00026027,3]
[329419049,1718328740822,-500.0,0.00026027,3]
[329419050,1718328740856,-500.0,0.00026027,3]
[329419051,1718328740869,-4875.13,0.00026027,3]
[329419052,1718328740901,-500.0,0.00026027,3]
[329419053,1718328740922,-500.0,0.00026027,3]
[329419054,1718328740936,-1146.24,0.00026027,3]
[329419055,1718328740957,-651.52,0.00026027,3]
[329419056,1718328740975,-500.0,0.00026027,3]
[329419057,1718328740990,-2483.67,0.00026027,3]
[329419058,1718328741010,-1056.72,0.00026027,3]
[329419059,1718328741024,-197.39485324,0.00026027,3]
[329419060,1718328741049,-2980.85,0.00026027,3]
[329419061,1718328741071,-3759.26,0.00026027,3]
[329419062,1718328741092,-500.0,0.00026027,3]
[329419063,1718328741108,-2040.13,0.00026027,3]
[329419064,1718328741121,-500.0,0.00026027,3]
[329419065,1718328741164,-949.95,0.00026027,3]
[329419066,1718328741176,-726.56,0.00026027,3]
[329419067,1718328741191,-1026.42,0.00026027,3]
[329419068,1718328741237,-1419.27,0.00026027,3]
[329419069,1718328741254,-500.0,0.00026027,3]
[329419070,1718328741275,-1958.96,0.00026027,3]
[329419071,1718328741322,-500.0,0.00026027,3]
[329419072,1718328741358,-500.0,0.00026027,3]
[329419073,1718328741386,-500.0,0.00026027,3]
[329419074,1718328741405,-1457.15,0.00026027,3]
[329419075,1718328741437,-2166.24,0.00026027,3]
[329419076,1718328741454,-1164.45,0.00026027,3]
[329419077,1718328741469,-1585.82,0.00026027,3]
[329419078,1718328741481,-1370.89,0.00026027,3]
[329419079,1718328741495,-500.0,0.00026027,3]
[329419080,1718328741506,-500.0,0.00026027,3]
[329419081,1718328741523,-472.37114321,0.00026027,3]
[329419082,1718328741564,-500.0,0.00026027,3]
[329419083,1718328741581,-979.9,0.00026027,3]
[329419084,1718328741606,-1246.72,0.00026027,3]
[329419085,1718328741641,-617.62,0.00026027,3]
[329419086,1718328741666,-1310.68,0.00026027,3]
[329419087,1718328741687,-500.0,0.00026027,3]
[329419088,1718328741706,-976.37,0.00026027,3]
[329419089,1718328741720,-928.5,0.00026027,3]
[329419090,1718328741735,-2479.24,0.00026027,3]
[329419091,1718328741765,-1915.78,0.00026027,3]
[329419092,1718328741778,-500.0,0.00026027,3]
[329419093,1718328741792,-9450.18,0.00026027,3]
[329419094,1718328741808,-758.88,0.00026027,3]
[329419095,1718328741820,-500.0,0.00026027,3]
[329419096,1718328741837,-500.0,0.00026027,3]
[329419097,1718328741849,-4571.95,0.00026027,3]
[329419098,1718328741869,-1010.1,0.00026027,3]
[329419099,1718328741890,-3729.75,0.00026027,3]
[329419100,1718328741909,-1291.17,0.00026027,3]
[329419101,1718328741921,-1160.9,0.00026027,3]
[329419102,1718328741933,-1442.54,0.00026027,3]
[329419103,1718328741948,-503.90127463,0.00026027,3]
[329419104,1718328741962,-1437.83,0.00026027,3]
[329419105,1718328741973,-1078.82,0.00026027,3]
[329419106,1718328741983,-3179.39,0.00026027,3]
[329419107,1718328741995,-4644.91,0.00026027,3]
[329419108,1718328742005,-660.45,0.00026027,3]
[329419109,1718328742016,-500.0,0.00026027,3]
[329419110,1718328742029,-500.0,0.00026027,3]
[329419111,1718328742044,-500.0,0.00026027,3]
[329419112,1718328742057,-3968.87,0.00026027,3]
[329419113,1718328742097,-1085.81,0.00026027,3]
[329419114,1718328742124,-2460.17,0.00026027,3]
[329419115,1718328742188,-3852.04,0.00026027,3]
[329419116,1718328742221,-4640.65,0.00026027,3]
[329419117,1718328742233,-855.86,0.00026027,3]
[329419118,1718328742285,-1149.69,0.00026027,3]
[329419119,1718328742309,-2477.54,0.00026027,3]
[329419120,1718328742324,-781.38,0.00026027,3]
[329419121,1718328742353,-2739.81,0.00026027,3]
[329419122,1718328742372,-318.53,0.00026027,3]
[329419123,1718328742386,-22917.63,0.00026027,3]
[329419124,1718328742428,-500.0,0.00026027,3]
[329419125,1718328742444,-2363.24,0.00026027,3]
[329419126,1718328742471,-801.82,0.00026027,3]
[329419127,1718328742489,-1182.53,0.00026027,3]
[329419128,1718328742516,-500.0,0.00026027,3]
[329419129,1718328742528,-2489.52,0.00026027,3]
[329419130,1718328742555,-1037.71,0.00026027,3]
[329419131,1718328742570,-671.04,0.00026027,3]
[329419132,1718328742592,-2448.61,0.00026027,3]
[329419133,1718328742627,-709.17,0.00026027,3]
[329419134,1718328742654,-2250.55,0.00026027,3]
[329419135,1718328742675,-663.02,0.00026027,3]
[329419136,1718328742688,-2614.62,0.00026027,3]
[329419137,1718328742702,-500.0,0.00026027,3]
[329419138,1718328742718,-500.0,0.00026027,3]
[329419139,1718328742732,-560.42,0.00026027,3]
[329419140,1718328742758,-1131.25,0.00026027,3]
[329419141,1718328742772,-500.0,0.00026027,3]
[329419142,1718328742785,-500.0,0.00026027,3]
[329419143,1718328742801,-3845.21,0.00026027,3]
[329419144,1718328742813,-967.09,0.00026027,3]
[329419145,1718328742824,-500.0,0.00026027,3]
[329419146,1718328742839,-3200.03,0.00026027,3]
[329419147,1718328742851,-250.0,0.00026027,3]
[329419148,1718328742876,-500.0,0.00026027,3]
[329419149,1718328742893,-714.39,0.00026027,3]
[329419150,1718328742913,-2771.64,0.00026027,3]
[329419151,1718328742931,-6182.51,0.00026027,3]
[329419152,1718328742948,-500.0,0.00026027,3]
[329419153,1718328742959,-1117.03,0.00026027,3]
[329419154,1718328742972,-500.0,0.00026027,3]
[329419155,1718328742985,-818.88,0.00026027,3]
[329419156,1718328743001,-500.0,0.00026027,3]
[329419157,1718328743014,-13361.61,0.00026027,3]
[329419158,1718328743026,-194.79960118,0.00026027,3]
[329419159,1718328743040,-1181.16,0.00026027,3]
[329419160,1718328743058,-500.0,0.00026027,3]
[329419161,1718328743071,-500.0,0.00026027,3]
[329419162,1718328743099,-500.0,0.00026027,3]
[329419163,1718328743119,-740.73,0.00026027,3]
[329419164,1718328743132,-584.95,0.00026027,3]
[329419165,1718328743156,-4766.45,0.00026027,3]
[329419166,1718328743177,-932.3,0.00026027,3]
[329419167,1718328743199,-150.0,0.00026028,2]
[329419168,1718328743213,-1500.0,0.00026029,2]
[329419169,1718328743228,-300.0,0.00026029,2]
[329419170,1718328743239,-150.0,0.0002603,2]
[329419171,1718328743252,-299.97626231,0.00026032,2]
[329419172,1718328743270,-150.0,0.00026033,2]
[329419173,1718328743286,-150.0,0.00026037,2]
[329419174,1718328743300,-4842.37,0.00026037,2]
[329419175,1718328743314,-1500.0,0.00026038,2]
[329419176,1718328743335,-150.0,0.00026038,2]